bitfinex/quotes_BTCUSD_20250830
["timestamp","ask_amount","ask_price","bid_price","bid_amount"]
[1756538613530,0.61543479,108400.0,108390.0,0.03389607]
[1756538615402,0.18450184,108400.0,108390.0,0.03389607]
[1756538615609,0.61543479,108400.0,108390.0,0.12918256]
[1756538616873,0.61543479,108400.0,108390.0,0.12687608]
[1756538617304,0.18450184,108400.0,108390.0,0.12687608]
[1756538617506,0.18450184,108400.0,108390.0,0.28231608]
[1756538617709,0.61543479,108400.0,108390.0,0.28231608]
[1756538621547,0.61543479,108400.0,108390.0,0.12687608]
[1756538623411,0.18450184,108400.0,108390.0,0.12687608]
[1756538623592,0.61543479,108400.0,108390.0,0.12687608]
[1756538623966,0.18450184,108400.0,108390.0,0.12918256]
[1756538624171,0.61543479,108400.0,108390.0,0.12918256]
[1756538625339,0.18450184,108400.0,108390.0,0.12918256]
[1756538625642,0.61543479,108400.0,108390.0,0.12918256]
[1756538627351,0.18450184,108400.0,108390.0,0.12918256]
[1756538627555,0.61543479,108400.0,108390.0,0.12918256]
[1756538629027,0.18450184,108400.0,108390.0,0.12918256]
[1756538629451,0.61543479,108400.0,108390.0,0.12918256]
[1756538630243,0.18450184,108400.0,108390.0,0.12918256]
[1756538630479,0.61543479,108400.0,108390.0,0.12918256]
[1756538632398,0.18450184,108400.0,108390.0,0.12918256]
[1756538632598,0.61543479,108400.0,108390.0,0.12918256]
[1756538633415,0.18450184,108400.0,108390.0,0.12918256]
[1756538633612,0.61543479,108400.0,108390.0,0.12918256]
[1756538634455,0.37965651,108400.0,108390.0,0.12918256]
[1756538635427,0.61543479,108400.0,108390.0,0.12918256]
[1756538637838,0.66057589,108400.0,108390.0,0.12415256]
[1756538638034,0.22964294,108400.0,108390.0,0.12184608]
[1756538638234,0.66057589,108400.0,108390.0,0.12480608]
[1756538638443,0.61543479,108400.0,108390.0,0.12480608]
[1756538639264,0.18450184,108400.0,108390.0,0.12480608]
[1756538639467,0.18450184,108400.0,108390.0,0.12690608]
[1756538639693,0.77119479,108400.0,108390.0,0.12690608]
[1756538639839,0.77219479,108400.0,108390.0,0.12690608]
[1756538640045,0.77219479,108400.0,108390.0,0.12590608]
[1756538640287,0.77119479,108400.0,108390.0,0.12590608]
[1756538640486,0.34026184,108400.0,108390.0,0.12590608]
[1756538640722,0.77219479,108400.0,108390.0,0.12590608]
[1756538641258,0.61643479,108400.0,108390.0,0.12590608]
[1756538643360,0.18550184,108400.0,108390.0,0.12590608]
[1756538643570,0.61643479,108400.0,108390.0,0.12590608]
[1756538645370,0.18550184,108400.0,108390.0,0.12590608]
[1756538645583,0.61643479,108400.0,108390.0,0.12590608]
[1756538649350,0.18550184,108400.0,108390.0,0.12590608]
[1756538649556,0.61643479,108400.0,108390.0,0.12590608]
[1756538651198,0.18550184,108400.0,108390.0,0.12590608]
[1756538651596,0.61643479,108400.0,108390.0,0.12590608]
[1756538652616,0.37581119,108400.0,108390.0,0.12590608]
[1756538652786,0.56031303,108400.0,108390.0,0.12590608]
[1756538653416,0.61543479,108400.0,108390.0,0.12590608]
[1756538654229,0.18450184,108400.0,108390.0,0.12380608]
[1756538654431,0.61543479,108400.0,108390.0,0.09817208]
[1756538654609,0.18450184,108400.0,108390.0,0.12590508]
[1756538655051,0.61543479,108400.0,108390.0,0.12590508]
[1756538655273,0.18450184,108400.0,108390.0,0.12590508]
[1756538655612,0.61543479,108400.0,108390.0,0.12590508]
[1756538656142,0.18450184,108400.0,108390.0,0.12590508]
[1756538656395,0.61543479,108400.0,108390.0,0.12590508]
[1756538656959,0.18450184,108400.0,108390.0,0.12590508]
[1756538659439,0.61543479,108400.0,108390.0,0.12590508]
[1756538660119,0.18450184,108400.0,108390.0,0.12590508]
[1756538662354,0.61543479,108400.0,108390.0,0.12590508]
[1756538663339,0.18450184,108400.0,108390.0,0.12590508]
[1756538663675,0.61543479,108400.0,108390.0,0.12590508]
[1756538665345,0.18450184,108400.0,108390.0,0.12590508]
[1756538665553,0.61543479,108400.0,108390.0,0.12590508]
[1756538666949,0.18422507,108400.0,108390.0,0.12590508]
[1756538667169,0.61515802,108400.0,108390.0,0.12590508]
[1756538667385,0.18422507,108400.0,108390.0,0.12590508]
[1756538667643,0.61515802,108400.0,108390.0,0.12590508]
[1756538668284,0.18422507,108400.0,108390.0,0.12590508]
[1756538668493,0.61515802,108400.0,108390.0,0.12590508]
[1756538673573,0.18422507,108400.0,108390.0,0.12590508]
[1756538673733,0.18422507,108400.0,108390.0,0.55914451]
[1756538673959,0.18422507,108400.0,108390.0,0.55683803]
[1756538680499,0.18422507,108400.0,108390.0,0.12590508]
[1756538680625,0.18422507,108400.0,108390.0,0.55914451]
[1756538680849,0.18422507,108400.0,108390.0,0.55683803]
[1756538688838,0.18422507,108400.0,108390.0,0.12590508]
[1756538689050,0.18422507,108400.0,108390.0,0.55914451]
[1756538689220,0.18422507,108400.0,108390.0,0.55683803]
[1756538698460,0.18422507,108400.0,108390.0,0.12590508]
[1756538698664,0.61515802,108400.0,108390.0,0.27664508]
[1756538699227,0.18422507,108400.0,108390.0,0.27978508]
[1756538699665,0.61515802,108400.0,108390.0,0.27978508]
[1756538703283,0.18422507,108400.0,108390.0,0.27978508]
[1756538703485,0.61515802,108400.0,108390.0,0.27978508]
[1756538704675,0.61615802,108400.0,108390.0,0.27978508]
[1756538704893,0.18522507,108400.0,108390.0,0.27978508]
[1756538705109,0.61515802,108400.0,108390.0,0.27978508]
[1756538706152,0.61515802,108400.0,108390.0,0.28078508]
[1756538707124,0.61615802,108400.0,108390.0,0.28078508]
[1756538707676,0.61515802,108400.0,108390.0,0.28078508]
[1756538708037,0.18422507,108400.0,108390.0,0.28280508]
[1756538708234,0.61515802,108400.0,108390.0,0.28280508]
[1756538708440,0.18422507,108400.0,108390.0,0.28280508]
[1756538708865,0.61515802,108400.0,108390.0,0.28280508]
[1756538713075,0.18422507,108400.0,108390.0,0.28280508]
[1756538713214,0.18422507,108400.0,108390.0,0.71373803]
[1756538714388,0.18422507,108400.0,108390.0,0.28280508]
[1756538714926,0.18422507,108400.0,108390.0,0.71373803]
[1756538715230,0.18422507,108400.0,108390.0,0.28280508]
[1756538718054,0.18422507,108400.0,108390.0,0.71373803]
[1756538721308,0.18422507,108400.0,108390.0,0.28280508]
[1756538724422,0.18422507,108400.0,108390.0,0.71373803]
[1756538729358,0.18422507,108400.0,108390.0,0.28280508]
[1756538729537,0.18422507,108400.0,108390.0,0.71373803]
[1756538733778,0.18422507,108400.0,108390.0,0.12700508]
[1756538733991,0.18422507,108400.0,108390.0,0.28252508]
[1756538736172,0.18422507,108400.0,108390.0,0.12700508]
[1756538736377,0.18422507,108400.0,108390.0,0.28252508]
[1756538736779,0.61515802,108400.0,108390.0,0.28252508]
[1756538737450,0.18422507,108400.0,108390.0,0.28252508]
[1756538737627,0.61515802,108400.0,108390.0,0.28252508]
[1756538739322,0.18422507,108400.0,108390.0,0.28252508]
[1756538739575,0.61515802,108400.0,108390.0,0.28252508]
[1756538740009,0.61515802,108400.0,108390.0,0.12700508]
[1756538740239,0.61515802,108400.0,108390.0,0.12498508]
[1756538740440,0.61515802,108400.0,108390.0,0.18438507]
[1756538740784,0.61515802,108400.0,108390.0,0.18752507]
[1756538740956,0.61515802,108400.0,108390.0,0.18953507]
[1756538741194,0.18422507,108400.0,108390.0,0.18953507]
[1756538741593,0.61615802,108400.0,108390.0,0.18953507]
[1756538743505,0.18422507,108400.0,108390.0,0.18953507]
[1756538743728,0.61515802,108400.0,108390.0,0.18953507]
[1756538747017,0.61515802,108400.0,108390.0,0.18949507]
[1756538747661,0.61515802,108400.0,108390.0,0.18748507]
[1756538748191,0.18422507,108400.0,108390.0,0.18748507]
[1756538748411,0.61515802,108400.0,108390.0,0.18949507]
[1756538749473,0.18422507,108400.0,108390.0,0.18949507]
[1756538749654,0.61515802,108400.0,108390.0,0.18748507]
[1756538752437,0.61515802,108400.0,108390.0,0.18963507]
[1756538753369,0.18422507,108400.0,108390.0,0.18963507]
[1756538753545,0.61515802,108400.0,108390.0,0.18963507]
[1756538755984,0.38449987,108400.0,108390.0,0.18963507]
[1756538756434,0.61543479,108400.0,108390.0,0.18963507]
[1756538757357,0.18450184,108400.0,108390.0,0.18963507]
[1756538757558,0.61543479,108400.0,108390.0,0.18963507]
[1756538760219,0.18450184,108400.0,108390.0,0.18963507]
[1756538760421,0.61543479,108400.0,108390.0,0.18963507]
[1756538762818,1.38636774,108400.0,108390.0,0.15661207]
[1756538763448,1.41410374,108400.0,108390.0,0.15661207]
[1756538763910,1.41510374,108400.0,108390.0,0.15661207]
[1756538764311,1.41410374,108400.0,108390.0,0.15964207]
[1756538764533,1.41410374,108400.0,108390.0,0.15864207]
[1756538764705,1.41410374,108400.0,108390.0,0.00316207]
[1756538765860,1.41610374,108400.0,108390.0,0.00316207]
[1756538766071,1.57158374,108400.0,108390.0,0.00316207]
[1756538772841,0.55423784,108400.0,108390.0,0.00531207]
[1756538773071,1.57154374,108400.0,108390.0,0.00531207]
[1756538774482,1.41610374,108400.0,108390.0,0.00531207]
[1756538774639,0.98517079,108400.0,108390.0,0.00531207]
[1756538779306,0.55423784,108400.0,108390.0,0.00531207]
[1756538779508,0.98517079,108400.0,108390.0,0.00531207]
[1756538782156,0.55423784,108400.0,108390.0,0.00531207]
[1756538782406,0.98517079,108400.0,108390.0,0.00531207]
[1756538783312,1.14061079,108400.0,108390.0,0.00531207]
[1756538786254,0.70967784,108400.0,108390.0,0.00531207]
[1756538786463,1.14061079,108400.0,108390.0,0.00531207]
[1756538787501,0.70967784,108400.0,108390.0,0.00531207]
[1756538787700,1.14061079,108400.0,108390.0,0.00531207]
[1756538788196,0.70967784,108400.0,108390.0,0.00531207]
[1756538788350,1.14061079,108400.0,108390.0,0.00531207]
[1756538792873,0.70967784,108400.0,108390.0,0.00531207]
[1756538793026,1.14061079,108400.0,108390.0,0.00531207]
[1756538794358,0.55423784,108400.0,108390.0,0.00531207]
[1756538794578,0.68190184,108400.0,108390.0,0.00531207]
[1756538794782,1.11283479,108400.0,108390.0,0.00531207]
[1756538794999,0.77293295,108400.0,108390.0,0.00531207]
[1756538795366,0.95743479,108400.0,108390.0,0.00531207]
[1756538795590,0.52650184,108400.0,108390.0,0.00531207]
[1756538795827,0.95743479,108400.0,108390.0,0.00531207]
[1756538796313,0.52650184,108400.0,108390.0,0.03304707]
[1756538796532,0.95743479,108400.0,108390.0,0.03304707]
[1756538800515,0.95743479,108400.0,108390.0,0.03535355]
[1756538800516,0.52650184,108400.0,108390.0,0.03535355]
[1756538800714,0.52650184,108400.0,108390.0,0.03304707]
[1756538800883,0.52650184,108400.0,108390.0,0.46398002]
[1756538804278,0.52650184,108400.0,108390.0,0.03304707]
[1756538809761,0.52650184,108400.0,108390.0,0.03535355]
[1756538810296,0.52650184,108400.0,108390.0,0.18836707]
[1756538812230,0.52450184,108400.0,108390.0,0.18836707]
[1756538812483,0.52650184,108400.0,108390.0,0.18836707]
[1756538812885,0.52450184,108400.0,108390.0,0.18836707]
[1756538813226,0.52550184,108400.0,108390.0,0.18836707]
[1756538815109,0.95643479,108400.0,108390.0,0.18836707]
[1756538815263,0.95543479,108400.0,108390.0,0.18836707]
[1756538815647,0.52450184,108400.0,108390.0,0.18836707]
[1756538815846,0.52550184,108400.0,108390.0,0.18836707]
[1756538816163,0.52550184,108400.0,108390.0,0.61930002]
[1756538816372,0.52450184,108400.0,108390.0,0.62030002]
[1756538819033,0.52450184,108400.0,108390.0,0.18936707]
[1756538819183,0.52450184,108400.0,108390.0,0.62030002]
[1756538819389,0.52450184,108400.0,108390.0,0.46498002]
[1756538819593,0.52450184,108400.0,108390.0,0.62030002]
[1756538820233,0.52450184,108400.0,108390.0,0.18936707]
[1756538822777,0.52450184,108400.0,108390.0,0.62030002]
[1756538824077,0.52450184,108400.0,108390.0,0.18936707]
[1756538824285,0.52450184,108400.0,108390.0,0.28234708]
[1756538825400,0.52450184,108400.0,108390.0,0.71328003]
[1756538825991,0.52450184,108400.0,108390.0,0.71228003]
[1756538826214,0.52450184,108400.0,108390.0,0.71328003]
[1756538826487,0.52450184,108400.0,108390.0,0.71528003]
[1756538826830,0.52450184,108400.0,108390.0,0.73377003]
[1756538827063,0.52450184,108400.0,108390.0,0.71528003]
[1756538827467,0.52450184,108400.0,108390.0,0.28434708]
[1756538827674,0.52450184,108400.0,108390.0,0.71528003]
[1756538828519,0.18450184,108400.0,108390.0,0.71528003]
[1756538834923,0.18450184,108400.0,108390.0,0.28434708]
[1756538835090,0.18450184,108400.0,108390.0,0.71528003]
[1756538837269,0.18450184,108400.0,108390.0,0.71520003]
[1756538839919,0.18450184,108400.0,108390.0,0.55996003]
[1756538840138,0.18450184,108400.0,108390.0,0.71520003]
[1756538840523,0.61543479,108400.0,108390.0,0.28426708]
[1756538841941,0.61543479,108400.0,108390.0,0.12902708]
[1756538842151,0.18450184,108400.0,108390.0,0.28426708]
[1756538842528,0.61543479,108400.0,108390.0,0.28426708]
[1756538843926,0.18450184,108400.0,108390.0,0.28426708]
[1756538844235,0.61543479,108400.0,108390.0,0.28426708]
[1756538845420,0.18450184,108400.0,108390.0,0.28426708]
[1756538845638,0.61543479,108400.0,108390.0,0.28426708]
[1756538848282,0.18423367,108400.0,108390.0,0.28426708]
[1756538848705,0.61516662,108400.0,108390.0,0.28426708]
[1756538850184,0.18423367,108400.0,108390.0,0.28426708]
[1756538850687,0.61516662,108400.0,108390.0,0.28426708]
[1756538851072,0.18423367,108400.0,108390.0,0.28426708]
[1756538851306,0.61516662,108400.0,108390.0,0.28426708]
[1756538852361,0.18423367,108400.0,108390.0,0.12902708]
[1756538852562,0.61516662,108400.0,108390.0,0.28422708]
[1756538855245,0.18423367,108400.0,108390.0,0.28422708]
[1756538855459,0.61516662,108400.0,108390.0,0.28422708]
[1756538858485,0.18423367,108400.0,108390.0,0.28422708]
[1756538858686,0.61516662,108400.0,108390.0,0.28422708]
[1756538859115,0.61416662,108400.0,108390.0,0.28422708]
[1756538860470,0.18323367,108400.0,108390.0,0.28422708]
[1756538860660,0.61416662,108400.0,108390.0,0.28422708]
[1756538862384,0.18323367,108400.0,108390.0,0.28422708]
[1756538862592,0.61416662,108400.0,108390.0,0.28422708]
[1756538864045,0.43093295,108400.0,108390.0,0.28422708]
[1756538864243,0.61543479,108400.0,108390.0,0.28422708]
[1756538865380,0.18450184,108400.0,108390.0,0.28422708]
[1756538865584,0.61543479,108400.0,108390.0,0.28422708]
[1756538866407,0.18450184,108400.0,108390.0,0.28422708]
[1756538866639,0.61543479,108400.0,108390.0,0.28422708]
[1756538867452,0.61543479,108400.0,108390.0,0.30271708]
[1756538867775,0.61543479,108400.0,108390.0,0.28422708]
[1756538868470,0.18448482,108410.0,108390.0,0.46874594]
[1756538868692,0.18448482,108410.0,108400.0,0.71072107]
[1756538868912,0.18448482,108410.0,108400.0,0.28251185]
[1756538869332,0.18448482,108410.0,108400.0,0.30345067]
[1756538869717,0.18448482,108410.0,108400.0,0.33117967]
[1756538870672,0.18448482,108410.0,108400.0,0.33217967]
[1756538871323,0.61541777,108410.0,108400.0,0.33217967]
[1756538871470,0.18448482,108410.0,108400.0,0.33217967]
[1756538871670,0.61541777,108410.0,108400.0,0.33217967]
[1756538872285,0.18448482,108410.0,108400.0,0.33217967]
[1756538873912,0.61541777,108410.0,108400.0,0.33217967]
[1756538874334,0.18448482,108410.0,108400.0,0.33217967]
[1756538878388,0.62462415,108420.0,108400.0,0.76311262]
[1756538878606,0.5336912,108420.0,108410.0,0.16035606]
[1756538878819,0.96462415,108420.0,108410.0,0.25545607]
[1756538879044,0.96462415,108420.0,108410.0,0.25315001]
[1756538879287,0.96462415,108420.0,108410.0,0.28087801]
[1756538879753,0.96562415,108420.0,108410.0,0.28087801]
[1756538880299,0.96462415,108420.0,108410.0,0.28087801]
[1756538880646,0.96562415,108420.0,108410.0,0.28087801]
[1756538881047,0.5346912,108420.0,108410.0,0.28087801]
[1756538881253,0.18546781,108420.0,108410.0,0.48630165]
[1756538881875,0.001,108420.0,108410.0,0.9172346]
[1756538883148,0.77966841,108440.0,108420.0,0.18446315]
[1756538883416,0.77966841,108440.0,108430.0,0.15805]
[1756538883417,0.96458841,108440.0,108430.0,0.15805]
[1756538883647,0.96458841,108440.0,108430.0,0.16017]
[1756538883861,0.96458841,108440.0,108430.0,0.187894]
[1756538884594,0.96563608,108440.0,108430.0,0.187894]
[1756538886176,0.96563608,108440.0,108430.0,0.28087401]
[1756538886393,0.96563608,108440.0,108430.0,0.28083401]
[1756538886604,1.39656903,108440.0,108430.0,0.28083401]
[1756538886826,1.39556903,108440.0,108430.0,0.28083401]
[1756538887064,0.96563608,108440.0,108430.0,0.28083401]
[1756538888842,0.53470313,108440.0,108430.0,0.28083401]
[1756538889054,0.96563608,108440.0,108430.0,0.28083401]
[1756538889406,0.18548145,108440.0,108430.0,0.4652848]
[1756538889612,0.6164144,108440.0,108430.0,0.4652848]
[1756538890260,0.6164144,108440.0,108430.0,0.28083401]
[1756538890467,0.18548145,108440.0,108430.0,0.28083401]
[1756538890678,0.18448145,108440.0,108430.0,0.28083401]
[1756538890911,0.6154144,108440.0,108430.0,0.28083401]
[1756538891785,0.18448145,108440.0,108430.0,0.28183401]
[1756538891997,0.6154144,108440.0,108430.0,0.28183401]
[1756538892690,0.6154144,108440.0,108430.0,0.12679401]
[1756538892892,0.6154144,108440.0,108430.0,0.28409964]
[1756538893099,0.6154144,108440.0,108430.0,0.28179401]
[1756538895151,1.04634735,108440.0,108430.0,0.28179401]
[1756538895355,1.04634735,108440.0,108430.0,0.27967401]
[1756538895550,0.6154144,108440.0,108430.0,0.27967401]
[1756538896178,0.6154144,108440.0,108430.0,0.12467401]
[1756538896406,0.6154144,108440.0,108430.0,0.28179401]
[1756538900356,0.18448145,108440.0,108430.0,0.28179401]
[1756538900562,0.6154144,108440.0,108430.0,0.28179401]
[1756538902375,0.18448145,108440.0,108430.0,0.28179401]
[1756538902578,0.6154144,108440.0,108430.0,0.28179401]
[1756538903111,0.18448145,108440.0,108430.0,0.28179401]
[1756538903344,0.6154144,108440.0,108430.0,0.28179401]
[1756538906365,0.18448145,108440.0,108430.0,0.28179401]
[1756538906518,0.6154144,108440.0,108430.0,0.28179401]
[1756538908309,0.18448145,108440.0,108430.0,0.28179401]
[1756538908500,0.6154144,108440.0,108430.0,0.28179401]
[1756538911014,0.18448145,108440.0,108430.0,0.28179401]
[1756538911216,0.6154144,108440.0,108430.0,0.28179401]
[1756538914305,0.18448145,108440.0,108430.0,0.4662448]
[1756538914828,0.6154144,108440.0,108430.0,0.4662448]
[1756538916528,0.18448145,108440.0,108430.0,0.4662448]
[1756538916730,0.6154144,108440.0,108430.0,0.4662448]
[1756538918478,0.18448145,108440.0,108430.0,0.4662448]
[1756538918834,4.767e-05,108440.0,108430.0,0.4662448]
[1756538919065,0.18448145,108440.0,108430.0,0.4662448]
[1756538922194,4.767e-05,108440.0,108430.0,0.89717775]
[1756538922611,4.767e-05,108440.0,108430.0,0.4662448]
[1756538922772,4.767e-05,108440.0,108430.0,0.89717775]
[1756538923205,4.767e-05,108440.0,108430.0,0.4662448]
[1756538925375,4.767e-05,108440.0,108430.0,0.89717775]
[1756538927182,4.767e-05,108440.0,108430.0,0.91811657]
[1756538928149,4.767e-05,108440.0,108430.0,0.76311657]
[1756538928352,0.18441749,108450.0,108440.0,0.18443262]
[1756538928560,0.00047688,108450.0,108440.0,0.28047263]
[1756538928767,0.00047688,108450.0,108440.0,0.35336263]
[1756538929189,0.00047688,108450.0,108440.0,0.38107963]
[1756538929589,0.00147688,108450.0,108440.0,0.38107963]
[1756538931161,0.01086108,108450.0,108440.0,0.38107963]
[1756538935332,0.44179403,108450.0,108440.0,0.38107963]
[1756538936580,0.01086108,108450.0,108440.0,0.38107963]
[1756538937590,0.44179403,108450.0,108440.0,0.38107963]
[1756538938507,0.01086108,108450.0,108440.0,0.38107963]
[1756538939152,0.00986108,108450.0,108440.0,0.38107963]
[1756538939369,0.44179403,108450.0,108440.0,0.38107963]
[1756538939953,0.44079403,108450.0,108440.0,0.38307963]
[1756538940153,0.00986108,108450.0,108440.0,0.38407963]
[1756538941749,0.19427786,108450.0,108440.0,0.38407963]
[1756538941933,0.19427786,108450.0,108440.0,0.35448701]
[1756538942334,0.19427786,108450.0,108440.0,0.53892079]
[1756538942895,0.19427786,108450.0,108440.0,0.19964701]
[1756538943104,0.62521081,108450.0,108440.0,0.53888079]
[1756538944145,0.62521081,108450.0,108440.0,0.38408079]
[1756538944350,0.62521081,108450.0,108440.0,0.53888079]
[1756538951637,0.19427786,108450.0,108440.0,0.53888079]
[1756538951839,0.62521081,108450.0,108440.0,0.53888079]
[1756538952262,0.19427786,108450.0,108440.0,0.53888079]
[1756538952458,0.62521081,108450.0,108440.0,0.53888079]
[1756538954464,0.19427786,108450.0,108440.0,0.53888079]
[1756538954667,0.62521081,108450.0,108440.0,0.53888079]
[1756538956119,0.62521081,108450.0,108440.0,0.35444701]
[1756538956320,0.19427786,108450.0,108440.0,0.53888079]
[1756538956724,0.62521081,108450.0,108440.0,0.53888079]
[1756538957740,0.19427786,108450.0,108440.0,0.53888079]
[1756538957981,0.62521081,108450.0,108440.0,0.53888079]
[1756538958337,0.19427786,108450.0,108440.0,0.53888079]
[1756538958543,0.62521081,108450.0,108440.0,0.53888079]
[1756538960399,0.19427786,108450.0,108440.0,0.53888079]
[1756538960595,0.62521081,108450.0,108440.0,0.53888079]
[1756538961134,0.19427786,108450.0,108440.0,0.53888079]
[1756538961336,0.62521081,108450.0,108440.0,0.53888079]
[1756538964456,0.19427786,108450.0,108440.0,0.53888079]
[1756538964777,0.62521081,108450.0,108440.0,0.53888079]
[1756538966514,0.19427786,108450.0,108440.0,0.53884079]
[1756538966659,0.62521081,108450.0,108440.0,0.53884079]
[1756538967691,0.19427786,108450.0,108440.0,0.53884079]
[1756538967892,0.62521081,108450.0,108440.0,0.53884079]
[1756538974479,0.19427786,108450.0,108440.0,0.53884079]
[1756538974681,0.62521081,108450.0,108440.0,0.53884079]
[1756538976414,0.19427786,108450.0,108440.0,0.53884079]
[1756538976620,0.62521081,108450.0,108440.0,0.53884079]
[1756538978381,0.19427786,108450.0,108440.0,0.53884079]
[1756538978585,0.62521081,108450.0,108440.0,0.53884079]
[1756538980360,0.19427786,108450.0,108440.0,0.53884079]
[1756538980548,0.62521081,108450.0,108440.0,0.53884079]
[1756538981259,0.62521081,108450.0,108440.0,0.35440701]
[1756538982032,0.62521081,108450.0,108440.0,0.53884079]
[1756538982370,0.19427786,108450.0,108440.0,0.53884079]
[1756538982609,0.62521081,108450.0,108440.0,0.53884079]
[1756538985575,0.19427786,108450.0,108440.0,0.53884079]
[1756538985750,0.62521081,108450.0,108440.0,0.53884079]
[1756538986514,0.19427786,108450.0,108440.0,0.53884079]
[1756538986742,0.62521081,108450.0,108440.0,0.53884079]
[1756538987681,0.19427786,108450.0,108440.0,0.53884079]
[1756538987892,0.62521081,108450.0,108440.0,0.53884079]
[1756538994355,0.19427786,108450.0,108440.0,0.53884079]
[1756538994556,0.62521081,108450.0,108440.0,0.53884079]
[1756538996106,0.19427786,108450.0,108440.0,0.53884079]
[1756538996498,0.44079403,108450.0,108440.0,0.53884079]
[1756538996698,0.44079403,108450.0,108440.0,0.55733079]
[1756538996904,0.44079403,108450.0,108440.0,0.53884079]
[1756538998404,0.00986108,108450.0,108440.0,0.53884079]
[1756538998603,0.62521081,108450.0,108440.0,0.53884079]
[1756538999403,0.62521081,108450.0,108440.0,0.19964701]
[1756538999603,0.62521081,108450.0,108440.0,0.53872079]
[1756538999832,0.62521081,108450.0,108440.0,0.35428701]
[1756539000705,0.19427786,108450.0,108440.0,0.35428701]
[1756539000882,0.19427786,108450.0,108440.0,0.38408079]
[1756539001055,0.19427786,108450.0,108440.0,0.53872079]
[1756539001245,0.62521081,108450.0,108440.0,0.53872079]
[1756539001629,0.62521081,108450.0,108440.0,0.38408079]
[1756539001831,0.62521081,108450.0,108440.0,0.53872079]
[1756539002474,0.19427786,108450.0,108440.0,0.53872079]
[1756539003631,0.62521081,108450.0,108440.0,0.53872079]
[1756539004465,0.19427786,108450.0,108440.0,0.53872079]
[1756539004664,0.62521081,108450.0,108440.0,0.53872079]
[1756539006218,0.19427786,108450.0,108440.0,0.53872079]
[1756539006452,0.00986108,108450.0,108440.0,0.53872079]
[1756539006702,0.44079403,108450.0,108440.0,0.53872079]
[1756539008946,0.00986108,108450.0,108440.0,0.53872079]
[1756539009363,0.44079403,108450.0,108440.0,0.53872079]
[1756539010379,0.00986108,108450.0,108440.0,0.53872079]
[1756539010559,0.44079403,108450.0,108440.0,0.53872079]
[1756539012539,0.00986108,108450.0,108440.0,0.53872079]
[1756539012765,0.44079403,108450.0,108440.0,0.53872079]
[1756539014341,0.00986108,108450.0,108440.0,0.53872079]
[1756539014531,0.44079403,108450.0,108440.0,0.53872079]
[1756539016370,0.00986108,108450.0,108440.0,0.53872079]
[1756539016575,0.44079403,108450.0,108440.0,0.53872079]
[1756539018058,0.62521081,108450.0,108440.0,0.53872079]
[1756539021657,0.19427786,108450.0,108440.0,0.53872079]
[1756539021899,0.00986108,108450.0,108440.0,0.53872079]
[1756539022094,0.44079403,108450.0,108440.0,0.53872079]
[1756539022537,0.00986108,108450.0,108440.0,0.53872079]
[1756539023282,0.44079403,108450.0,108440.0,0.53872079]
[1756539025526,0.00986108,108450.0,108440.0,0.53872079]
[1756539025874,0.19427786,108450.0,108440.0,0.53872079]
[1756539029346,0.00986108,108450.0,108440.0,0.53872079]
[1756539030760,0.44079403,108450.0,108440.0,0.53872079]
[1756539031418,0.19427786,108450.0,108440.0,0.53864079]
[1756539034127,0.19427786,108450.0,108440.0,0.38408079]
[1756539034332,0.62521081,108450.0,108440.0,0.19767701]
[1756539034583,0.62521081,108450.0,108440.0,0.35223701]
[1756539035427,0.62521081,108450.0,108440.0,0.35428701]
[1756539035574,0.44079403,108450.0,108440.0,0.53872079]
[1756539035788,0.44079403,108450.0,108440.0,0.53772079]
[1756539035985,0.18441678,108450.0,108440.0,0.53772079]
[1756539036190,0.61534973,108450.0,108440.0,0.53772079]
[1756539036439,0.64583751,108450.0,108440.0,0.53572079]
[1756539036671,0.64583751,108450.0,108440.0,0.53672079]
[1756539037267,0.64583751,108450.0,108440.0,0.53772079]
[1756539037469,0.21490456,108450.0,108440.0,0.53772079]
[1756539037677,0.64583751,108450.0,108440.0,0.53772079]
[1756539038635,0.21490456,108450.0,108440.0,0.53772079]
[1756539038891,0.64583751,108450.0,108440.0,0.53772079]
[1756539039432,0.21490456,108450.0,108440.0,0.53772079]
[1756539039753,0.64583751,108450.0,108440.0,0.53772079]
[1756539040949,0.64583751,108450.0,108440.0,0.34817701]
[1756539041477,0.64583751,108450.0,108440.0,0.35118701]
[1756539042087,0.64583751,108450.0,108440.0,0.28026701]
[1756539042285,0.41418998,108450.0,108440.0,0.28026701]
[1756539042489,0.61534973,108450.0,108440.0,0.28026701]
[1756539043294,0.61534973,108450.0,108440.0,0.28231701]
[1756539043528,0.61534973,108450.0,108440.0,0.46675079]
[1756539044452,0.64465376,108450.0,108440.0,0.28231701]
[1756539045038,0.64465376,108450.0,108440.0,0.46675079]
[1756539047388,0.21372081,108450.0,108440.0,0.46675079]
[1756539047800,0.64465376,108450.0,108440.0,0.46675079]
[1756539050467,0.46023698,108450.0,108440.0,0.46675079]
[1756539051410,0.02930403,108450.0,108440.0,0.46675079]
[1756539051611,0.46023698,108450.0,108440.0,0.46475079]
[1756539051857,0.43093295,108450.0,108440.0,0.46475079]
[1756539052513,0.93455895,108460.0,108450.0,0.18441678]
[1756539052684,0.9346066,108460.0,108450.0,0.28261679]
[1756539052898,0.96396763,108460.0,108450.0,0.28261679]
[1756539053329,0.96396763,108460.0,108450.0,0.31033479]
[1756539054245,1.39490058,108460.0,108450.0,0.31033479]
[1756539054619,1.39490058,108460.0,108450.0,0.31133479]
[1756539056182,0.96396763,108460.0,108450.0,0.31133479]
[1756539056885,1.39490058,108460.0,108450.0,0.12691801]
[1756539057068,1.39490058,108460.0,108450.0,0.12922321]
[1756539057510,1.39490058,108460.0,108450.0,0.28370321]
[1756539057747,1.39490058,108460.0,108450.0,0.28139801]
[1756539058586,0.53303468,108460.0,108450.0,0.28139801]
[1756539058793,0.96396763,108460.0,108450.0,0.28139801]
[1756539059559,1.39490058,108460.0,108450.0,0.28139801]
[1756539060463,0.96396763,108460.0,108450.0,0.46581479]
[1756539061103,0.96396763,108460.0,108450.0,0.96766774]
[1756539061104,4.765e-05,108460.0,108450.0,0.96766774]
[1756539061356,4.765e-05,108460.0,108450.0,0.53673479]
[1756539061539,4.765e-05,108460.0,108450.0,0.96766774]
[1756539063598,4.765e-05,108460.0,108450.0,0.96666774]
[1756539063845,4.765e-05,108460.0,108450.0,0.53773479]
[1756539064098,4.765e-05,108460.0,108450.0,0.96866774]
[1756539064279,4.765e-05,108460.0,108450.0,0.99278656]
[1756539064497,4.765e-05,108460.0,108450.0,0.99378656]
[1756539064841,4.765e-05,108460.0,108450.0,0.99278656]
[1756539065043,4.765e-05,108460.0,108450.0,0.99378656]
[1756539065681,4.765e-05,108460.0,108450.0,0.99278656]
[1756539066455,4.765e-05,108460.0,108450.0,0.99578656]
[1756539067727,4.765e-05,108460.0,108450.0,1.96671951]
[1756539067949,4.765e-05,108460.0,108450.0,1.53578656]
[1756539068162,4.765e-05,108460.0,108450.0,1.57732596]
[1756539068933,4.765e-05,108460.0,108450.0,1.57728596]
[1756539069221,4.765e-05,108460.0,108450.0,1.57927562]
[1756539071748,4.765e-05,108460.0,108450.0,1.97927562]
[1756539072907,4.765e-05,108460.0,108450.0,2.24837562]
[1756539075094,4.765e-05,108460.0,108450.0,2.09393562]
[1756539075298,4.765e-05,108460.0,108450.0,2.24837562]